[Event "Early-Titled-Tuesday-Blitz-March-26-2024"]
[Site "Chess.com"]
[Date "2024.03.26"]
[Round "9"]
[White "Mysterio47"]
[Black "eljanov"]
[Result "0-1"]
[WhiteElo "2722"]
[BlackElo "2920"]
[TimeControl "180+1"]
[EndTime "9:41:52 PDT"]
[Termination "eljanov won by resignation"]

1. e4 {[%clk 0:03:00.9]} 1... c6 {[%clk 0:02:59.6]} 2. d4 {[%clk 0:02:58.9]}
2... d5 {[%clk 0:03:00.5]} 3. Nc3 {[%clk 0:02:59.6]} 3... dxe4 {[%clk
0:03:00.8]} 4. Nxe4 {[%clk 0:03:00.5]} 4... Nf6 {[%clk 0:03:01.5]} 5. Nxf6+
{[%clk 0:03:01.2]} 5... exf6 {[%clk 0:03:02.4]} 6. c3 {[%clk 0:03:01.9]} 6...
Bd6 {[%clk 0:03:02.6]} 7. Bd3 {[%clk 0:03:02.6]} 7... O-O {[%clk 0:03:03]} 8.
Qc2 {[%clk 0:03:03.3]} 8... Re8+ {[%clk 0:03:02.5]} 9. Ne2 {[%clk 0:03:04]} 9...
h5 {[%clk 0:03:02.8]} 10. Be3 {[%clk 0:03:04.5]} 10... h4 {[%clk 0:02:55.8]} 11.
O-O-O {[%clk 0:02:57.7]} 11... Nd7 {[%clk 0:02:55.5]} 12. c4 {[%clk 0:02:56.4]}
12... Nf8 {[%clk 0:02:54.3]} 13. Nc3 {[%clk 0:02:55.3]} 13... Bg4 {[%clk
0:02:50.5]} 14. Rde1 {[%clk 0:02:51.7]} 14... Bb4 {[%clk 0:02:29.4]} 15. a3
{[%clk 0:02:45.5]} 15... Ba5 {[%clk 0:02:29.7]} 16. h3 {[%clk 0:02:39.9]} 16...
Bh5 {[%clk 0:02:29.6]} 17. Be2 {[%clk 0:02:06]} 17... Bg6 {[%clk 0:02:22.3]} 18.
Bd3 {[%clk 0:02:05]} 18... b5 {[%clk 0:02:18]} 19. Bxg6 {[%clk 0:01:52]} 19...
Nxg6 {[%clk 0:02:17.8]} 20. c5 {[%clk 0:01:45.1]} 20... b4 {[%clk 0:02:16]} 21.
axb4 {[%clk 0:01:36.7]} 21... Bxb4 {[%clk 0:02:16.2]} 22. Rd1 {[%clk 0:01:23.4]}
22... Qa5 {[%clk 0:01:48.8]} 23. d5 {[%clk 0:01:09.2]} 23... Bxc5 {[%clk
0:01:46.3]} 24. dxc6 {[%clk 0:01:09.4]} 24... Bxe3+ {[%clk 0:01:40.6]} 25. fxe3
{[%clk 0:01:10.3]} 25... Ne7 {[%clk 0:01:40.9]} 26. Rd6 {[%clk 0:01:01.4]} 26...
Rac8 {[%clk 0:01:36.6]} 27. Qe4 {[%clk 0:00:14.7]} 27... Nxc6 {[%clk 0:01:35.8]}
28. Rxc6 {[%clk 0:00:14.8]} 28... Rxe4 {[%clk 0:01:35]} 29. Rxc8+ {[%clk
0:00:15.1]} 29... Kh7 {[%clk 0:01:35.4]} 30. Nxe4 {[%clk 0:00:15.7]} 30... Qa1+
{[%clk 0:01:35.1]} 31. Kc2 {[%clk 0:00:16]} 31... Qxh1 {[%clk 0:01:35.7]} 32.
Rc7 {[%clk 0:00:14.6]} 32... Qxg2+ {[%clk 0:01:35.1]} 33. Nd2 {[%clk 0:00:15.4]}
33... Qxh3 {[%clk 0:01:34]} 34. Rxf7 {[%clk 0:00:16.2]} 34... Qxe3 {[%clk
0:01:32.9]} 35. Nc4 {[%clk 0:00:13.3]} 35... Qe6 {[%clk 0:01:30]} 36. Rc7 {[%clk
0:00:13.2]} 36... h3 {[%clk 0:01:30.3]} 0-1

[Event "Early-Titled-Tuesday-Blitz-March-26-2024"]
[Site "Chess.com"]
[Date "2024.03.26"]
[Round "9"]
[White "rionelG"]
[Black "WindWhistler11"]
[Result "0-1"]
[WhiteElo "2201"]
[BlackElo "2435"]
[TimeControl "180+1"]
[EndTime "9:42:10 PDT"]
[Termination "WindWhistler11 won by resignation"]

1. e4 {[%clk 0:03:00.9]} 1... e6 {[%clk 0:02:50]} 2. d4 {[%clk 0:03:00.6]} 2...
d5 {[%clk 0:02:49.1]} 3. Nd2 {[%clk 0:03:01.1]} 3... Nf6 {[%clk 0:02:48.6]} 4.
e5 {[%clk 0:03:00.8]} 4... Nfd7 {[%clk 0:02:49.3]} 5. c3 {[%clk 0:02:59.6]} 5...
c5 {[%clk 0:02:49.8]} 6. f4 {[%clk 0:02:58.8]} 6... Nc6 {[%clk 0:02:50.5]} 7.
Ngf3 {[%clk 0:02:53.9]} 7... Rb8 {[%clk 0:02:44.6]} 8. Nb3 {[%clk 0:02:53.4]}
8... b5 {[%clk 0:02:43.1]} 9. Be3 {[%clk 0:02:52.7]} 9... c4 {[%clk 0:02:42.2]}
10. Nbd2 {[%clk 0:02:34.9]} 10... b4 {[%clk 0:02:39.7]} 11. f5 {[%clk
0:02:32.7]} 11... exf5 {[%clk 0:02:37.8]} 12. Be2 {[%clk 0:02:25.4]} 12... Nb6
{[%clk 0:02:35.8]} 13. O-O {[%clk 0:02:20.9]} 13... Be7 {[%clk 0:02:34.3]} 14.
Qe1 {[%clk 0:02:18.8]} 14... g5 {[%clk 0:02:12.9]} 15. Nb1 {[%clk 0:01:46]}
15... Be6 {[%clk 0:02:04.5]} 16. Bd2 {[%clk 0:01:29.2]} 16... a5 {[%clk
0:02:03.3]} 17. b3 {[%clk 0:01:14.6]} 17... g4 {[%clk 0:01:55.9]} 18. Ng5 {[%clk
0:00:55.1]} 18... Bxg5 {[%clk 0:01:54.7]} 19. bxc4 {[%clk 0:00:54.8]} 19... Nxc4
{[%clk 0:01:52.3]} 20. Bxg5 {[%clk 0:00:50]} 20... Qxg5 {[%clk 0:01:51.4]} 21.
Bxc4 {[%clk 0:00:50.1]} 21... dxc4 {[%clk 0:01:50.9]} 22. Kh1 {[%clk 0:00:41.9]}
22... O-O {[%clk 0:01:46.5]} 23. Nd2 {[%clk 0:00:36]} 23... bxc3 {[%clk
0:01:43.1]} 24. Nb1 {[%clk 0:00:35.3]} 24... c2 {[%clk 0:01:39.5]} 25. Nc3
{[%clk 0:00:32.3]} 25... Nxd4 {[%clk 0:01:38.2]} 26. Qf2 {[%clk 0:00:21]} 26...
Rfd8 {[%clk 0:01:35.4]} 27. Rac1 {[%clk 0:00:20.9]} 27... h5 {[%clk 0:01:21.6]}
28. Qe1 {[%clk 0:00:16.9]} 28... h4 {[%clk 0:01:18.7]} 29. Ne2 {[%clk
0:00:16.6]} 29... h3 {[%clk 0:01:09.3]} 30. Nxd4 {[%clk 0:00:15.3]} 30... hxg2+
{[%clk 0:01:08.4]} 31. Kxg2 {[%clk 0:00:14.3]} 31... Rxd4 {[%clk 0:01:08.8]} 32.
Qxa5 {[%clk 0:00:13.1]} 32... Bd5+ {[%clk 0:01:05.1]} 33. Kg1 {[%clk 0:00:12.7]}
33... g3 {[%clk 0:01:04.5]} 34. h3 {[%clk 0:00:08.4]} 34... Qe3+ {[%clk
0:01:02.3]} 0-1

[Event "Early-Titled-Tuesday-Blitz-March-26-2024"]
[Site "Chess.com"]
[Date "2024.03.26"]
[Round "9"]
[White "MikeWizard"]
[Black "Boudicca64"]
[Result "1-0"]
[WhiteElo "2092"]
[BlackElo "1808"]
[TimeControl "180+1"]
[EndTime "9:42:10 PDT"]
[Termination "MikeWizard won on time"]

1. d4 {[%clk 0:03:00.9]} 1... Nf6 {[%clk 0:02:58]} 2. c4 {[%clk 0:03:00.2]} 2...
g6 {[%clk 0:02:57.6]} 3. Nc3 {[%clk 0:02:58.9]} 3... Bg7 {[%clk 0:02:56.8]} 4.
e4 {[%clk 0:02:58.9]} 4... d6 {[%clk 0:02:56]} 5. h3 {[%clk 0:02:56.4]} 5... O-O
{[%clk 0:02:53.3]} 6. Nge2 {[%clk 0:02:56.2]} 6... e5 {[%clk 0:02:48.9]} 7. d5
{[%clk 0:02:55.6]} 7... Nbd7 {[%clk 0:02:47.1]} 8. g4 {[%clk 0:02:55.2]} 8...
Nc5 {[%clk 0:02:40.1]} 9. Ng3 {[%clk 0:02:54.8]} 9... a5 {[%clk 0:02:37.1]} 10.
Be3 {[%clk 0:02:47.9]} 10... Nfd7 {[%clk 0:02:33.3]} 11. Be2 {[%clk 0:02:36.4]}
11... b6 {[%clk 0:01:57.3]} 12. h4 {[%clk 0:02:29.6]} 12... Nf6 {[%clk
0:01:51.9]} 13. g5 {[%clk 0:02:19.7]} 13... Ne8 {[%clk 0:01:48.7]} 14. h5 {[%clk
0:02:18]} 14... f6 {[%clk 0:01:44.1]} 15. hxg6 {[%clk 0:02:16.6]} 15... hxg6
{[%clk 0:01:41.4]} 16. Qd2 {[%clk 0:02:16.2]} 16... Kf7 {[%clk 0:01:37.9]} 17.
Rh7 {[%clk 0:02:05.8]} 17... f5 {[%clk 0:01:33.1]} 18. exf5 {[%clk 0:02:03.8]}
18... gxf5 {[%clk 0:01:29.2]} 19. O-O-O {[%clk 0:02:01.7]} 19... f4 {[%clk
0:01:26.5]} 20. Bxc5 {[%clk 0:02:01.1]} 20... bxc5 {[%clk 0:01:23]} 21. Nge4
{[%clk 0:01:56.1]} 21... Rh8 {[%clk 0:01:10.7]} 22. Bh5+ {[%clk 0:01:39.2]}
22... Kg8 {[%clk 0:01:05.4]} 23. Rxh8+ {[%clk 0:01:36.9]} 23... Bxh8 {[%clk
0:01:00.4]} 24. Rh1 {[%clk 0:01:35.9]} 24... Bf5 {[%clk 0:00:54.1]} 25. f3
{[%clk 0:01:30.2]} 25... Qe7 {[%clk 0:00:48.7]} 26. Qh2 {[%clk 0:01:26.7]} 26...
Bg7 {[%clk 0:00:43.2]} 27. Bg4 {[%clk 0:01:14.2]} 27... Bxg4 {[%clk 0:00:33.1]}
28. Qh7+ {[%clk 0:01:13.8]} 28... Kf8 {[%clk 0:00:27.6]} 29. fxg4 {[%clk
0:01:12.9]} 29... a4 {[%clk 0:00:20.1]} 30. Nb5 {[%clk 0:01:08.9]} 30... Rb8
{[%clk 0:00:17]} 31. Rh3 {[%clk 0:01:03.2]} 31... Qf7 {[%clk 0:00:14.6]} 32. Qf5
{[%clk 0:01:00.5]} 1-0

[Event "Early-Titled-Tuesday-Blitz-March-26-2024"]
[Site "Chess.com"]
[Date "2024.03.26"]
[Round "9"]
[White "Statham_01"]
[Black "CarlosjPineror"]
[Result "1-0"]
[WhiteElo "2590"]
[BlackElo "2736"]
[TimeControl "180+1"]
[EndTime "9:42:13 PDT"]
[Termination "Statham_01 won by resignation"]

1. e4 {[%clk 0:03:00.5]} 1... c5 {[%clk 0:03:00.1]} 2. a3 {[%clk 0:02:59.7]}
2... e6 {[%clk 0:02:58.6]} 3. b4 {[%clk 0:02:58]} 3... cxb4 {[%clk 0:02:59]} 4.
axb4 {[%clk 0:02:58.7]} 4... d5 {[%clk 0:02:56.2]} 5. exd5 {[%clk 0:02:54.4]}
5... exd5 {[%clk 0:02:56.1]} 6. Bb2 {[%clk 0:02:54.6]} 6... Nf6 {[%clk
0:02:56.5]} 7. b5 {[%clk 0:02:46.2]} 7... Bc5 {[%clk 0:02:46.2]} 8. d4 {[%clk
0:02:44.3]} 8... Bb4+ {[%clk 0:02:42.2]} 9. c3 {[%clk 0:02:44.5]} 9... Bd6
{[%clk 0:02:41.7]} 10. Bd3 {[%clk 0:02:44]} 10... Bg4 {[%clk 0:02:40.6]} 11. Nf3
{[%clk 0:02:36.2]} 11... O-O {[%clk 0:02:39.3]} 12. O-O {[%clk 0:02:36.5]} 12...
Nbd7 {[%clk 0:02:38.8]} 13. Nbd2 {[%clk 0:02:36.4]} 13... Re8 {[%clk 0:02:27.4]}
14. c4 {[%clk 0:02:36.6]} 14... dxc4 {[%clk 0:02:18.8]} 15. Nxc4 {[%clk
0:02:37.5]} 15... Nb6 {[%clk 0:02:00.1]} 16. Ne3 {[%clk 0:02:17.2]} 16... Bh5
{[%clk 0:01:54.9]} 17. Be2 {[%clk 0:01:36.4]} 17... Nbd5 {[%clk 0:01:52.6]} 18.
Ne5 {[%clk 0:01:30.4]} 18... Bxe2 {[%clk 0:01:51.4]} 19. Qxe2 {[%clk 0:01:31.3]}
19... Nxe3 {[%clk 0:01:32.4]} 20. Qxe3 {[%clk 0:01:17.6]} 20... Qb6 {[%clk
0:01:14.6]} 21. Qb3 {[%clk 0:01:08.7]} 21... a6 {[%clk 0:00:59.4]} 22. Nxf7
{[%clk 0:00:51.6]} 22... Kf8 {[%clk 0:00:58.6]} 23. Ne5 {[%clk 0:00:44.8]} 23...
Bxe5 {[%clk 0:00:33]} 24. dxe5 {[%clk 0:00:43.5]} 24... Nd7 {[%clk 0:00:33.7]}
25. Ba3+ {[%clk 0:00:33.1]} 25... Nc5 {[%clk 0:00:29.8]} 26. Rac1 {[%clk
0:00:30.3]} 26... Rac8 {[%clk 0:00:28.8]} 27. Qe3 {[%clk 0:00:28.5]} 1-0

[Event "Early-Titled-Tuesday-Blitz-March-26-2024"]
[Site "Chess.com"]
[Date "2024.03.26"]
[Round "9"]
[White "NastyaHn"]
[Black "ChessQueen"]
[Result "0-1"]
[WhiteElo "2454"]
[BlackElo "2717"]
[TimeControl "180+1"]
[EndTime "9:42:15 PDT"]
[Termination "ChessQueen won on time"]

1. Nc3 {[%clk 0:02:58.7]} 1... c6 {[%clk 0:02:56.7]} 2. d4 {[%clk 0:02:55]} 2...
d5 {[%clk 0:02:56.6]} 3. e4 {[%clk 0:02:55.4]} 3... dxe4 {[%clk 0:02:56.8]} 4.
Nxe4 {[%clk 0:02:56.1]} 4... Nf6 {[%clk 0:02:57.4]} 5. Nxf6+ {[%clk 0:02:56]}
5... exf6 {[%clk 0:02:58.3]} 6. Be3 {[%clk 0:02:56.1]} 6... Be6 {[%clk
0:02:50.9]} 7. Bd3 {[%clk 0:02:55.9]} 7... Nd7 {[%clk 0:02:48.1]} 8. Ne2 {[%clk
0:02:54.9]} 8... Bd6 {[%clk 0:02:46.7]} 9. c4 {[%clk 0:02:54.2]} 9... O-O {[%clk
0:02:44.1]} 10. Qc2 {[%clk 0:02:54.4]} 10... h5 {[%clk 0:02:40]} 11. O-O {[%clk
0:02:34]} 11... h4 {[%clk 0:02:37.5]} 12. h3 {[%clk 0:02:33.3]} 12... Re8 {[%clk
0:02:36.2]} 13. Nf4 {[%clk 0:02:30.7]} 13... Nf8 {[%clk 0:02:32.9]} 14. Rad1
{[%clk 0:02:27.6]} 14... Rc8 {[%clk 0:02:30.9]} 15. Nxe6 {[%clk 0:02:16]} 15...
Nxe6 {[%clk 0:02:20.1]} 16. Bf5 {[%clk 0:02:15.4]} 16... Bb8 {[%clk 0:02:17.7]}
17. f4 {[%clk 0:01:42.4]} 17... g6 {[%clk 0:02:02.9]} 18. Bg4 {[%clk 0:00:51.9]}
18... f5 {[%clk 0:02:02.3]} 19. Be2 {[%clk 0:00:52]} 19... Ng5 {[%clk
0:01:56.3]} 20. Qc1 {[%clk 0:00:40.4]} 20... Ne4 {[%clk 0:01:54.7]} 21. Bf3
{[%clk 0:00:39.6]} 21... Ng3 {[%clk 0:01:52.6]} 22. Rfe1 {[%clk 0:00:39.8]}
22... Bd6 {[%clk 0:01:48]} 23. c5 {[%clk 0:00:20.5]} 23... Bb8 {[%clk
0:01:47.7]} 24. b4 {[%clk 0:00:20.7]} 24... Ne4 {[%clk 0:01:33.9]} 25. Qc4
{[%clk 0:00:15.2]} 25... b5 {[%clk 0:01:29.2]} 26. Qb3 {[%clk 0:00:11.8]} 26...
a5 {[%clk 0:01:23.6]} 27. a3 {[%clk 0:00:10.8]} 27... a4 {[%clk 0:01:23.3]} 28.
Qc2 {[%clk 0:00:08.3]} 28... Qd5 {[%clk 0:01:22.7]} 29. Bf2 {[%clk 0:00:04.5]}
29... Bxf4 {[%clk 0:01:20.6]} 30. Bxh4 {[%clk 0:00:04.7]} 30... Qb3 {[%clk
0:01:14.9]} 31. Qxb3 {[%clk 0:00:03.2]} 31... axb3 {[%clk 0:01:15.8]} 32. Bxe4
{[%clk 0:00:02.6]} 32... fxe4 {[%clk 0:01:15.9]} 33. Rb1 {[%clk 0:00:02.4]}
33... Bd2 {[%clk 0:01:14.4]} 34. Re2 {[%clk 0:00:02.2]} 34... Bc3 {[%clk
0:01:14.6]} 35. Bf2 {[%clk 0:00:01.1]} 35... e3 {[%clk 0:01:08.5]} 0-1

[Event "Early-Titled-Tuesday-Blitz-March-26-2024"]
[Site "Chess.com"]
[Date "2024.03.26"]
[Round "9"]
[White "Dewarfd"]
[Black "LeninGuerra"]
[Result "0-1"]
[WhiteElo "2149"]
[BlackElo "2670"]
[TimeControl "180+1"]
[EndTime "9:42:25 PDT"]
[Termination "LeninGuerra won on time"]

1. c4 {[%clk 0:02:59.8]} 1... e5 {[%clk 0:02:49]} 2. Nc3 {[%clk 0:02:55.7]} 2...
Nf6 {[%clk 0:02:48.7]} 3. g3 {[%clk 0:02:54.5]} 3... Bc5 {[%clk 0:02:48.9]} 4.
Bg2 {[%clk 0:02:51.1]} 4... a6 {[%clk 0:02:49]} 5. e4 {[%clk 0:02:49.1]} 5...
O-O {[%clk 0:02:47.1]} 6. Nge2 {[%clk 0:02:49.1]} 6... d6 {[%clk 0:02:47.4]} 7.
O-O {[%clk 0:02:48.7]} 7... Ba7 {[%clk 0:02:47.8]} 8. Nd5 {[%clk 0:02:43.6]}
8... c6 {[%clk 0:02:46.6]} 9. Nxf6+ {[%clk 0:02:39.5]} 9... Qxf6 {[%clk
0:02:47.5]} 10. d3 {[%clk 0:02:37.7]} 10... Bg4 {[%clk 0:02:47.3]} 11. Be3
{[%clk 0:02:34.2]} 11... Bxe3 {[%clk 0:02:46.5]} 12. fxe3 {[%clk 0:02:34.4]}
12... Qh6 {[%clk 0:02:46.9]} 13. Qe1 {[%clk 0:02:24.7]} 13... Qxe3+ {[%clk
0:02:44.7]} 14. Rf2 {[%clk 0:02:18.5]} 14... Bxe2 {[%clk 0:02:41.5]} 15. Qxe2
{[%clk 0:02:17.2]} 15... Qxe2 {[%clk 0:02:42]} 16. Rxe2 {[%clk 0:02:17.3]} 16...
Nd7 {[%clk 0:02:41.2]} 17. b4 {[%clk 0:02:16.8]} 17... a5 {[%clk 0:02:37.9]} 18.
Rb1 {[%clk 0:01:59.7]} 18... axb4 {[%clk 0:02:36.7]} 19. Rxb4 {[%clk 0:02:00.6]}
19... Nc5 {[%clk 0:02:37.1]} 20. Rd2 {[%clk 0:01:41.7]} 20... Rfd8 {[%clk
0:01:55.3]} 21. d4 {[%clk 0:01:07.2]} 21... exd4 {[%clk 0:01:54.6]} 22. Rxd4
{[%clk 0:01:07.3]} 22... Kf8 {[%clk 0:01:55.2]} 23. Rd2 {[%clk 0:00:50.1]} 23...
Ke7 {[%clk 0:01:54.8]} 24. h4 {[%clk 0:00:44.3]} 24... f6 {[%clk 0:01:54]} 25.
g4 {[%clk 0:00:41.8]} 25... Ra3 {[%clk 0:01:53.3]} 26. g5 {[%clk 0:00:22.3]}
26... Rda8 {[%clk 0:01:49.1]} 27. gxf6+ {[%clk 0:00:20.5]} 27... gxf6 {[%clk
0:01:50]} 28. Rbb2 {[%clk 0:00:18.9]} 28... Re3 {[%clk 0:01:47]} 29. Re2 {[%clk
0:00:18.7]} 29... Raa3 {[%clk 0:01:46.5]} 30. Kf2 {[%clk 0:00:17.7]} 30... Rxe2+
{[%clk 0:01:43]} 31. Rxe2 {[%clk 0:00:17.8]} 31... Rc3 {[%clk 0:01:42.1]} 32.
Re3 {[%clk 0:00:15.9]} 32... Rc2+ {[%clk 0:01:40.6]} 33. Kg1 {[%clk 0:00:15.1]}
33... Rxc4 {[%clk 0:01:38]} 34. Rg3 {[%clk 0:00:15.7]} 34... Ne6 {[%clk
0:01:20.6]} 35. Rg8 {[%clk 0:00:12.8]} 35... b5 {[%clk 0:01:13.8]} 36. Rh8
{[%clk 0:00:06.4]} 36... Nf8 {[%clk 0:01:13.3]} 37. Rg8 {[%clk 0:00:03.8]} 37...
Kf7 {[%clk 0:01:13]} 38. Rg4 {[%clk 0:00:03.3]} 38... Ng6 {[%clk 0:01:12.4]} 39.
h5 {[%clk 0:00:03.1]} 39... Ne5 {[%clk 0:01:12.2]} 40. Rg3 {[%clk 0:00:02.9]}
40... b4 {[%clk 0:01:09.2]} 41. Bf1 {[%clk 0:00:01.4]} 41... Rxe4 {[%clk
0:01:08.2]} 0-1

[Event "Early-Titled-Tuesday-Blitz-March-26-2024"]
[Site "Chess.com"]
[Date "2024.03.26"]
[Round "9"]
[White "Shuvalov"]
[Black "AsaHoffmann"]
[Result "0-1"]
[WhiteElo "2581"]
[BlackElo "2422"]
[TimeControl "180+1"]
[EndTime "9:42:26 PDT"]
[Termination "AsaHoffmann won by resignation"]

1. d4 {[%clk 0:03:00.9]} 1... Nf6 {[%clk 0:02:58.9]} 2. c4 {[%clk 0:03:00.8]}
2... c5 {[%clk 0:02:53.5]} 3. d5 {[%clk 0:02:59.1]} 3... e5 {[%clk 0:02:53.2]}
4. dxe6 {[%clk 0:02:57.7]} 4... fxe6 {[%clk 0:02:53]} 5. Nc3 {[%clk 0:02:56.9]}
5... d5 {[%clk 0:02:53]} 6. cxd5 {[%clk 0:02:56.8]} 6... exd5 {[%clk 0:02:52.6]}
7. e4 {[%clk 0:02:57]} 7... d4 {[%clk 0:02:52.4]} 8. e5 {[%clk 0:02:52.2]} 8...
Nfd7 {[%clk 0:02:40.4]} 9. Bb5 {[%clk 0:02:13.3]} 9... dxc3 {[%clk 0:02:33.3]}
10. e6 {[%clk 0:02:12.5]} 10... cxb2 {[%clk 0:02:30.3]} 11. Bxb2 {[%clk
0:02:09.7]} 11... Qa5+ {[%clk 0:02:28]} 12. Qd2 {[%clk 0:02:09.1]} 12... Qxb5
{[%clk 0:02:27.5]} 13. exd7+ {[%clk 0:02:07.2]} 13... Bxd7 {[%clk 0:02:24]} 14.
O-O-O {[%clk 0:02:07.1]} 14... Na6 {[%clk 0:01:58.9]} 15. Re1+ {[%clk
0:01:57.3]} 15... Kd8 {[%clk 0:01:50.3]} 16. Nf3 {[%clk 0:01:54.9]} 16... Qa4
{[%clk 0:01:37.5]} 17. Ne5 {[%clk 0:01:44.5]} 17... Kc7 {[%clk 0:01:24.9]} 18.
Nf7 {[%clk 0:01:29.1]} 18... Rg8 {[%clk 0:01:22.4]} 19. Be5+ {[%clk 0:01:26.5]}
19... Kb6 {[%clk 0:01:16]} 20. Re3 {[%clk 0:01:17.8]} 20... Bc6 {[%clk
0:01:10.7]} 21. Rb3+ {[%clk 0:01:15.6]} 21... Nb4 {[%clk 0:01:09.4]} 22. Nd6
{[%clk 0:00:41.5]} 22... Bxd6 {[%clk 0:01:05.4]} 23. Bxd6 {[%clk 0:00:41.6]}
23... Rgd8 {[%clk 0:01:01.2]} 24. Rd1 {[%clk 0:00:39.4]} 24... Ka6 {[%clk
0:01:00.7]} 25. Kb2 {[%clk 0:00:32.1]} 25... Qxa2+ {[%clk 0:00:59.8]} 26. Kc3
{[%clk 0:00:32.3]} 26... Qxd2+ {[%clk 0:00:59.4]} 27. Rxd2 {[%clk 0:00:33.2]}
27... b6 {[%clk 0:00:53.9]} 28. Be5 {[%clk 0:00:28.4]} 28... Rxd2 {[%clk
0:00:52]} 29. Kxd2 {[%clk 0:00:29.3]} 29... Rd8+ {[%clk 0:00:51.8]} 30. Ke3
{[%clk 0:00:25.5]} 30... g6 {[%clk 0:00:51.1]} 31. f4 {[%clk 0:00:25.3]} 31...
Kb5 {[%clk 0:00:51]} 32. g4 {[%clk 0:00:24.4]} 32... a5 {[%clk 0:00:51.2]} 33.
Kf2 {[%clk 0:00:22.6]} 33... a4 {[%clk 0:00:51.4]} 34. Rb1 {[%clk 0:00:20.9]}
34... a3 {[%clk 0:00:50.9]} 35. Kg3 {[%clk 0:00:21.1]} 35... a2 {[%clk
0:00:50.9]} 36. Rc1 {[%clk 0:00:19.5]} 36... Bd5 {[%clk 0:00:50.2]} 37. Kh4
{[%clk 0:00:19.4]} 37... Nd3 {[%clk 0:00:49.9]} 38. Rd1 {[%clk 0:00:15.7]} 38...
Nxe5 {[%clk 0:00:49.4]} 39. fxe5 {[%clk 0:00:16.6]} 39... Re8 {[%clk 0:00:49.7]}
40. Rxd5 {[%clk 0:00:15.5]} 40... a1=Q {[%clk 0:00:47.6]} 0-1

[Event "Early-Titled-Tuesday-Blitz-March-26-2024"]
[Site "Chess.com"]
[Date "2024.03.26"]
[Round "9"]
[White "ragnaroek66"]
[Black "gpsji27"]
[Result "1-0"]
[WhiteElo "2502"]
[BlackElo "2347"]
[TimeControl "180+1"]
[EndTime "9:42:26 PDT"]
[Termination "ragnaroek66 won on time"]

1. d4 {[%clk 0:03:00.9]} 1... d5 {[%clk 0:03:00.2]} 2. c4 {[%clk 0:03:00.6]}
2... e6 {[%clk 0:03:00.3]} 3. Nf3 {[%clk 0:03:01.2]} 3... Nf6 {[%clk 0:03:00.6]}
4. g3 {[%clk 0:03:00.9]} 4... Be7 {[%clk 0:03:00.6]} 5. Bg2 {[%clk 0:03:01.3]}
5... O-O {[%clk 0:03:01.2]} 6. O-O {[%clk 0:03:02]} 6... dxc4 {[%clk 0:02:59.6]}
7. Qc2 {[%clk 0:03:02.3]} 7... a6 {[%clk 0:02:54.2]} 8. a4 {[%clk 0:03:00.7]}
8... Bd7 {[%clk 0:02:48.1]} 9. Qxc4 {[%clk 0:03:00.6]} 9... Bc6 {[%clk
0:02:47.4]} 10. Bg5 {[%clk 0:03:00.5]} 10... Bd5 {[%clk 0:02:45.2]} 11. Qc2
{[%clk 0:02:51.3]} 11... Be4 {[%clk 0:02:44]} 12. Qc1 {[%clk 0:02:37.3]} 12...
Nc6 {[%clk 0:02:23.8]} 13. Nbd2 {[%clk 0:02:25.3]} 13... Bg6 {[%clk 0:02:07.8]}
14. e3 {[%clk 0:02:15.2]} 14... Nb4 {[%clk 0:01:54.6]} 15. Ne5 {[%clk
0:02:13.5]} 15... Nfd5 {[%clk 0:01:44.3]} 16. Bxe7 {[%clk 0:02:08]} 16... Qxe7
{[%clk 0:01:38]} 17. Rd1 {[%clk 0:01:59]} 17... Bc2 {[%clk 0:01:25.9]} 18. Rf1
{[%clk 0:01:52.7]} 18... f6 {[%clk 0:01:17]} 19. Nec4 {[%clk 0:01:35.6]} 19...
b5 {[%clk 0:01:08.8]} 20. axb5 {[%clk 0:01:22.6]} 20... axb5 {[%clk 0:01:09.7]}
21. Rxa8 {[%clk 0:01:22]} 21... Rxa8 {[%clk 0:01:10.3]} 22. Na3 {[%clk
0:01:22.3]} 22... Bd3 {[%clk 0:01:04.5]} 23. Re1 {[%clk 0:01:18.7]} 23... Na2
{[%clk 0:00:51.8]} 24. Qd1 {[%clk 0:01:12.8]} 24... Nac3 {[%clk 0:00:28.6]} 25.
Qb3 {[%clk 0:01:05.4]} 25... b4 {[%clk 0:00:14.4]} 26. Nac4 {[%clk 0:00:58.2]}
26... Bxc4 {[%clk 0:00:04.1]} 27. Qxc4 {[%clk 0:00:47.5]} 27... Nb6 {[%clk
0:00:01.9]} 28. Qb3 {[%clk 0:00:41.4]} 1-0

[Event "Early-Titled-Tuesday-Blitz-March-26-2024"]
[Site "Chess.com"]
[Date "2024.03.26"]
[Round "9"]
[White "Kacparov"]
[Black "Oleksandr_Bortnyk"]
[Result "1-0"]
[WhiteElo "2909"]
[BlackElo "3058"]
[TimeControl "180+1"]
[EndTime "9:42:36 PDT"]
[Termination "Kacparov won on time"]

1. e4 {[%clk 0:03:00.9]} 1... Nf6 {[%clk 0:02:58.6]} 2. e5 {[%clk 0:03:00.8]}
2... Nd5 {[%clk 0:02:58.9]} 3. d4 {[%clk 0:03:01.3]} 3... d6 {[%clk 0:02:59.4]}
4. Nf3 {[%clk 0:03:01.9]} 4... dxe5 {[%clk 0:03:00]} 5. Nxe5 {[%clk 0:03:02.8]}
5... c6 {[%clk 0:03:00.6]} 6. Be2 {[%clk 0:03:02.7]} 6... Bf5 {[%clk 0:03:00.7]}
7. O-O {[%clk 0:03:02.7]} 7... Nd7 {[%clk 0:03:01]} 8. Nf3 {[%clk 0:03:02.1]}
8... e6 {[%clk 0:03:01.5]} 9. c4 {[%clk 0:02:54.2]} 9... N5f6 {[%clk 0:03:01.7]}
10. Nc3 {[%clk 0:02:54.3]} 10... Bd6 {[%clk 0:03:02]} 11. Be3 {[%clk 0:02:54.1]}
11... O-O {[%clk 0:03:01]} 12. h3 {[%clk 0:02:54.5]} 12... e5 {[%clk 0:02:56.4]}
13. dxe5 {[%clk 0:02:50.7]} 13... Nxe5 {[%clk 0:02:55.7]} 14. Qd4 {[%clk
0:02:38.2]} 14... Qc7 {[%clk 0:02:36.6]} 15. Rad1 {[%clk 0:02:27.1]} 15... Nxf3+
{[%clk 0:02:19.6]} 16. Bxf3 {[%clk 0:02:26.6]} 16... Bh2+ {[%clk 0:02:20.5]} 17.
Kh1 {[%clk 0:02:26.4]} 17... Be5 {[%clk 0:02:21.4]} 18. Qh4 {[%clk 0:02:19.5]}
18... Rad8 {[%clk 0:02:11.1]} 19. Bd4 {[%clk 0:01:48.8]} 19... Bxd4 {[%clk
0:01:40.5]} 20. Rxd4 {[%clk 0:01:48.4]} 20... Qb6 {[%clk 0:01:41.4]} 21. Rxd8
{[%clk 0:01:39.4]} 21... Rxd8 {[%clk 0:01:42.3]} 22. Qf4 {[%clk 0:01:25.4]}
22... Qxb2 {[%clk 0:01:25.4]} 23. Nd1 {[%clk 0:01:25.5]} 23... Qxa2 {[%clk
0:00:40.8]} 24. Qxf5 {[%clk 0:01:25]} 24... Qxc4 {[%clk 0:00:40.2]} 25. Ne3
{[%clk 0:01:25.4]} 25... Qa2 {[%clk 0:00:35.6]} 26. Qe5 {[%clk 0:01:20]} 26...
Re8 {[%clk 0:00:06.6]} 27. Qd4 {[%clk 0:01:18.7]} 27... a5 {[%clk 0:00:03.7]}
28. Kg1 {[%clk 0:01:17.1]} 28... h6 {[%clk 0:00:01.6]} 29. Ra1 {[%clk
0:01:13.5]} 29... Qb3 {[%clk 0:00:02]} 30. Rxa5 {[%clk 0:01:11.4]} 30... Qb1+
{[%clk 0:00:02.1]} 31. Kh2 {[%clk 0:01:08.2]} 31... Qe1 {[%clk 0:00:02.5]} 32.
Ra2 {[%clk 0:01:04.4]} 32... Qc1 {[%clk 0:00:01.8]} 33. Qb4 {[%clk 0:00:54.2]}
33... b5 {[%clk 0:00:01.9]} 34. Rc2 {[%clk 0:00:53.2]} 34... c5 {[%clk
0:00:01.7]} 35. Qxb5 {[%clk 0:00:46.9]} 35... Qa1 {[%clk 0:00:02.2]} 36. Qxc5
{[%clk 0:00:47]} 36... Qa4 {[%clk 0:00:02.7]} 37. Bc6 {[%clk 0:00:43.9]} 37...
Qf4+ {[%clk 0:00:01.1]} 38. g3 {[%clk 0:00:44.4]} 1-0